bitfinex-derivatives/quotes_SOLF0:USTF0_20260220
["timestamp","ask_amount","ask_price","bid_price","bid_amount"]
[1771559839412,3.13570433,83.02,82.981,9.82593003]
[1771559840811,0.58116999,83.019,82.981,9.82593003]
[1771559841019,3.13570433,83.01,82.981,9.82593003]
[1771559841210,0.58116999,83.009,82.969,10.8532]
[1771559841812,3.13570433,83.0,82.967,9.82593003]
[1771559845020,0.58116999,83.009,82.967,9.82593003]
[1771559848221,3.13570433,83.01,82.967,10.8536]
[1771559848424,3.13570433,83.01,82.968,9.82593003]
[1771559849120,3.13570433,82.99,82.968,9.82593003]
[1771559849923,3.13570433,83.0,82.968,9.82593003]
[1771559858826,0.63036401,83.009,82.968,9.82593003]
[1771559859027,0.75370564,83.006,82.968,9.82593003]
[1771559860027,3.13570433,83.0,82.968,9.82593003]
[1771559863930,0.75370564,83.006,82.968,9.82593003]
[1771559864523,0.7388396,83.003,82.968,9.82593003]
[1771559865130,0.7355893,82.999,82.968,9.82593003]
[1771559867933,10.8488,83.004,82.968,9.82593003]
[1771559868726,9.17569114,83.003,82.968,9.82593003]
[1771559868930,9.17569114,83.002,82.968,9.82593003]
[1771559869130,10.8488,83.004,82.968,9.82593003]
[1771559869331,10.8492,83.001,82.968,9.82593003]
[1771559876739,10.8498,82.997,82.968,9.82593003]
[1771559877745,10.8509,82.988,82.968,3.003e-05]
[1771559880649,10.8498,82.996,82.968,3.003e-05]
[1771559882746,10.8488,83.004,82.968,3.003e-05]
[1771559882949,9.17331635,83.003,82.968,3.003e-05]
[1771559883151,9.23796545,83.018,82.981,9.2060378]
[1771559884151,9.17448888,83.017,82.981,9.2060378]
[1771559884351,9.23796545,83.018,82.981,9.2060378]
[1771559884551,9.17409326,83.017,82.981,9.2060378]
[1771559884752,10.8474,83.015,82.981,9.2060378]
[1771559886650,10.8474,83.015,82.99,3.13671381]
[1771559887552,10.8474,83.015,82.981,9.2060378]
[1771559888750,10.8458,83.027,82.981,9.2060378]
[1771559888959,9.17601231,83.026,82.981,9.2060378]
[1771559889255,10.8462,83.024,82.981,9.2060378]
[1771559889455,9.17601231,83.023,82.981,9.2060378]
[1771559889653,9.88516286,83.021,82.981,9.2060378]
[1771559891656,10.8462,83.024,82.981,9.2060378]
[1771559892856,10.847,83.018,82.981,9.2060378]
[1771559893055,9.88516286,83.017,82.981,9.2060378]
[1771559894656,10.8475,83.014,82.981,9.2060378]
[1771559896151,20.73296286,83.012,82.981,9.2060378]
[1771559896354,13.02187667,83.01,82.981,9.2060378]
[1771559896553,9.88516286,83.01,82.981,9.2060378]
[1771559903264,9.45286701,83.008,82.965,10.05720496]
[1771559904565,10.8485,83.006,82.965,10.05720496]
[1771559912867,9.45286701,83.008,82.965,10.05720496]
[1771559914268,10.8473,83.016,82.965,10.05720496]
[1771559916672,10.848,83.011,82.965,10.05720496]
[1771559918166,18.87474,83.011,82.965,10.05720496]
[1771559918474,8.05226908,83.01,82.965,10.05720496]
[1771559924688,7.52832268,83.009,82.965,10.05720496]
[1771559926289,7.52832268,83.009,82.966,10.8537]
[1771559926587,7.52832268,83.009,82.967,8.6918158]
[1771559926783,10.43485642,83.0,82.956,8.6918158]
[1771559927087,7.29814261,82.999,82.956,8.6918158]
[1771559934291,7.29814261,82.999,82.957,10.8549]
[1771559934491,7.29814261,82.999,82.958,8.6918158]
[1771559940198,6.36901871,82.995,82.958,8.6918158]
[1771559943002,6.36901871,82.995,82.961,7.49367837]
[1771559943799,10.848,83.01,82.971,7.49367837]
[1771559946008,16.74003749,83.01,82.971,7.49367837]
[1771559949408,5.61454239,83.0,82.971,7.49367837]
[1771559949604,5.61454239,83.0,82.962,7.19307869]
[1771559950005,8.75166784,83.0,82.95,7.19307869]
[1771559950207,5.55625703,82.994,82.95,7.19307869]
[1771559950403,5.55625703,82.994,82.951,7.19307869]
[1771559951110,5.55834635,82.991,82.951,7.19307869]
[1771559956015,5.27939016,82.989,82.951,7.19307869]
[1771559961319,4.98139151,82.987,82.951,7.19307869]
[1771559962720,4.93049447,82.996,82.961,7.19307869]
[1771559963227,4.88017684,83.009,82.961,7.19307869]
[1771559964924,10.8495,82.999,82.961,7.19307869]
[1771559971426,10.8484,83.008,82.971,7.19307869]
[1771559971631,4.48020459,83.019,82.971,7.19307869]
[1771559972735,4.41864458,83.016,82.971,7.19307869]
[1771559979241,4.07502455,83.009,82.971,7.19307869]
[1771559983437,11.27322088,83.038,82.971,7.19307869]
[1771559983438,3.91130489,83.007,82.971,7.19307869]
[1771559983640,3.91130489,82.999,82.962,6.4927418]
[1771559986445,3.79735294,82.996,82.962,6.4927418]
[1771559988141,10.8495,82.999,82.962,6.4927418]
[1771559989046,14.50970248,83.008,82.962,6.4927418]
[1771559991349,10.8483,83.008,82.962,6.4927418]
[1771559993248,10.8492,83.001,82.962,6.4927418]
[1771559995647,3.53519634,83.0,82.962,6.4927418]
[1771559998644,3.42479016,82.996,82.962,6.4927418]
[1771559999143,3.39206141,83.005,82.962,6.4927418]
[1771559999347,14.24073963,83.004,82.962,6.4927418]
[1771560000246,10.8474,83.015,82.981,6.4927418]
[1771560002044,3.27782891,83.037,83.001,6.4927418]
[1771560002850,3.15900565,83.049,83.001,6.4927418]
[1771560003050,10.8433,83.047,83.01,3.1363118]
[1771560003251,10.8433,83.047,83.011,5.96051055]
[1771560003953,10.8418,83.058,83.021,5.96051055]
[1771560004452,13.92397771,83.058,83.021,5.96051055]
[1771560007152,3.08217771,83.058,83.021,5.96051055]
[1771560012855,2.72126152,83.068,83.021,5.96051055]
[1771560016357,2.60385002,83.078,83.031,5.70265239]
[1771560016555,10.8387,83.082,82.981,36.17]
[1771560016556,10.8387,83.082,83.041,5.70265239]
[1771560017951,3.1363118,83.08,83.041,5.70265239]
[1771560018154,2.47409968,83.049,82.981,5.70265239]
[1771560018355,3.1363118,83.03,82.991,5.70265239]
[1771560019056,2.47409968,83.039,82.991,5.70265239]
[1771560019360,2.47409968,83.039,82.992,5.70265239]
[1771560020158,3.1363118,83.04,82.996,5.70265239]
[1771560020361,2.34612418,83.049,83.001,5.70265239]
[1771560021059,3.1363118,83.04,83.001,5.70265239]
[1771560025463,2.06972951,83.039,83.001,5.70265239]
[1771560025659,11.27322088,83.095,82.95,62.0]
[1771560025660,2.06972951,83.029,82.98,5.70265239]
[1771560025965,2.06972951,83.029,82.981,5.70265239]
[1771560026167,2.02767891,83.019,82.981,5.70265239]
[1771560026359,2.05510406,83.009,82.961,5.70265239]
[1771560026564,5.19141586,83.02,82.971,5.70265239]
[1771560031462,1.8303092,83.019,82.971,5.70265239]
[1771560033169,1.77556609,83.017,82.971,5.70265239]
[1771560040181,1.49606499,83.009,82.971,5.70265239]
[1771560041677,4.59418712,83.02,82.971,5.70265239]
[1771560042077,4.59418712,83.02,82.981,5.51992557]
[1771560042078,1.45787532,83.02,82.981,5.51992557]
[1771560042279,1.40920255,83.03,82.981,5.51992557]
[1771560042579,1.40920255,83.039,82.991,5.51992557]
[1771560042977,1.40920255,83.039,82.99,3.1363118]
[1771560043181,9.13457986,83.082,82.981,5.51992557]
[1771560043182,1.37504195,83.019,82.981,5.51992557]
[1771560043481,1.37504195,83.019,82.973,10.8528]
[1771560043482,4.51197663,83.01,82.961,5.51992557]
[1771560043683,1.37566483,83.009,82.961,5.51992557]
[1771560044786,1.37566483,83.009,82.965,5.51992557]
[1771560045287,1.3144806,82.999,82.951,5.51992557]
[1771560046782,1.3144806,82.999,82.955,5.51992557]
[1771560047686,1.3144806,82.999,82.961,5.51992557]
[1771560060395,13.98471099,83.01,82.961,5.51992557]
[1771560060396,11.50715017,83.008,82.961,5.51992557]
[1771560060690,11.50715017,83.008,82.971,5.51992557]
[1771560061088,0.63100314,83.007,82.971,5.51992557]
[1771560061892,10.8484,83.008,82.971,5.51992557]
[1771560063489,11.40848634,83.002,82.971,5.51992557]
[1771560063694,0.55938634,83.001,82.971,5.51992557]
[1771560065302,10.8491,83.002,82.971,5.51992557]
[1771560066488,14.462178,83.01,82.971,5.51992557]
[1771560067096,11.32556701,83.01,82.971,5.51992557]
[1771560067497,0.47756701,83.01,82.971,5.51992557]
[1771560068000,10.847,83.018,82.971,5.51992557]
[1771560068595,10.8458,83.027,82.981,4.93982588]
[1771560068998,10.8458,83.027,82.991,4.93982588]
[1771560078806,3.52866967,83.03,82.991,4.93982588]
[1771560082811,0.08487135,83.029,82.991,4.93982588]
[1771560086714,0.08487135,83.029,82.943,29.99213435]
[1771560086715,3.13661099,83.0,82.945,4.92669814]
[1771560086910,3.13661099,82.99,82.945,4.92669814]
[1771560087110,3.13661099,83.0,82.951,4.92669814]
[1771560087512,3.13661099,83.01,82.961,4.92631632]
[1771560087815,3.13661099,83.02,82.971,4.92631632]
[1771560088811,3.15803845,83.02,82.971,4.92631632]
[1771560090318,3.13661099,83.02,82.971,4.92631632]
[1771560090919,3.13661099,83.0,82.96,4.91618556]
[1771560091916,3.13661099,83.0,82.914,36.18]
[1771560091917,3.13661099,82.98,82.922,4.91583864]
[1771560092115,168.7071,83.03,82.922,4.91583864]
[1771560092116,3.13661099,82.96,82.922,4.91583864]
[1771560094219,3.13661099,82.97,82.922,4.91583864]
[1771560096715,10.8512,82.986,82.886,2.09751011]
[1771560096716,3.13661099,82.94,82.894,4.90896126]
[1771560097018,3.13661099,82.95,82.901,4.90896126]
[1771560097620,3.13661099,82.94,82.901,4.90896126]
[1771560100124,3.13661099,82.95,82.901,4.90896126]
[1771560101225,3.13661099,82.95,82.876,2.09797166]
[1771560101226,168.8194,82.975,82.863,4.85952051]
[1771560101525,3.13661099,82.91,82.863,4.85952051]
[1771560101730,3.13661099,82.9,82.861,4.85930846]
[1771560102028,3.13661099,82.92,82.871,4.85930846]
[1771560102726,9.14667355,82.972,82.871,4.85930846]
[1771560102921,3.13661099,82.93,82.881,4.9818942]
[1771560103319,3.13661099,82.92,82.881,4.9818942]
[1771560104527,3.13661099,82.93,82.881,4.9818942]
[1771560106426,3.13661099,82.92,82.881,4.9818942]
[1771560106626,3.13661099,82.91,82.87,8.17862308]
[1771560106827,3.13661099,82.91,82.87,5.04201209]
[1771560107023,3.13661099,82.92,82.859,10.8677]
[1771560107221,21.7031,82.983,82.837,5.04201209]
[1771560107222,168.8621,82.954,82.837,5.04201209]
[1771560107426,3.13661099,82.88,82.837,5.04201209]
[1771560107625,3.13661099,82.87,82.837,5.04201209]
[1771560109328,3.13661099,82.87,82.82,3.13661099]
[1771560109329,3.13661099,82.87,82.825,5.15813104]
[1771560111132,10.8642,82.887,82.831,5.24229687]
[1771560111133,3.13661099,82.88,82.831,5.24229687]
[1771560113829,3.13661099,82.88,82.8,62.0]
[1771560113830,10.8684,82.854,82.8,62.0]
[1771560114135,3.13661099,82.83,82.784,10.6235088]
[1771560114440,3.13661099,82.81,82.771,10.62127323]
[1771560114936,3.13661099,82.81,82.711,169.3556]
[1771560114937,3.13661099,82.83,82.781,10.62127323]
[1771560115129,168.9755,82.898,82.781,10.62127323]
[1771560115330,3.13661099,82.84,82.784,10.62081145]
[1771560115531,3.13661099,82.85,82.801,10.62081145]
[1771560115937,9.37104734,82.86,82.801,10.62081145]
[1771560117234,9.37104734,82.86,82.78,9.37104734]
[1771560117235,9.37104734,82.86,82.787,10.62320113]
[1771560117433,9.37104734,82.9,82.787,10.62320113]
[1771560117434,9.37104734,82.85,82.787,10.62320113]
[1771560117835,9.37096065,82.86,82.787,10.62320113]
[1771560118039,9.37096065,82.86,82.789,10.62320113]
[1771560119235,10.8678,82.859,82.79,10.8767]
[1771560119440,10.8678,82.859,82.791,10.59603773]
[1771560119643,9.37096065,82.86,82.76,62.0]
[1771560119939,9.37096065,82.85,82.743,10.59603773]
[1771560120141,9.37096065,82.82,82.743,10.59603773]
[1771560120344,9.37096065,82.82,82.758,10.54975327]
[1771560120639,169.0042,82.884,82.758,10.54975327]
[1771560120640,168.9864,82.893,82.758,10.54975327]
[1771560120839,9.37096065,82.83,82.761,10.54975327]
[1771560121139,9.37096065,82.83,82.765,10.54975327]
[1771560122739,9.37096065,82.83,82.766,10.58295906]
[1771560123046,21.7217,82.912,82.791,10.58295906]
[1771560123343,9.37096065,82.87,82.805,10.58244193]
[1771560124541,168.8962,82.937,82.808,10.65742325]
[1771560124745,9.37096065,82.88,82.808,10.65742325]
[1771560125246,9.37096065,82.89,82.822,10.65742325]
[1771560125647,9.37096065,82.87,82.801,10.65697723]
[1771560125842,9.37096065,82.84,82.779,10.65697723]
[1771560126746,9.37096065,82.85,82.779,10.65697723]
[1771560127748,9.37096065,82.85,82.782,10.63182242]
[1771560128952,9.37096065,82.87,82.798,10.5608467]
[1771560129448,9.37096065,82.87,82.805,10.8748]
[1771560129655,9.37096065,82.87,82.806,10.56050996]
[1771560130853,9.37096065,82.87,82.809,10.56268519]
[1771560131954,9.37096065,82.87,82.813,10.56235367]
[1771560132457,10.8653,82.878,82.813,10.56235367]
[1771560133152,9.37096065,82.85,82.778,10.56314341]
[1771560133758,10.8707,82.837,82.778,10.56314341]
[1771560134256,10.8692,82.848,82.781,10.8779]
[1771560134557,10.8692,82.848,82.782,15.98780753]
[1771560135554,10.8705,82.838,82.782,15.98780753]
[1771560136058,9.37096065,82.81,82.753,10.8816]
[1771560136557,9.37096065,82.81,82.753,26.83873627]
[1771560136853,10.8718,82.829,82.761,15.95713627]
[1771560137358,10.8731,82.818,82.761,15.95713627]
[1771560139850,20.24256065,82.83,82.765,15.93294698]
[1771560140158,9.37096065,82.83,82.765,15.93294698]
[1771560140355,9.37096065,82.81,82.741,15.93564673]
[1771560140559,9.37096065,82.79,82.711,15.93564673]
[1771560141853,9.37096065,82.79,82.737,15.93567086]
[1771560142054,9.37096065,82.79,82.685,2.10258564]
[1771560142055,9.37096065,82.79,82.71,9.37096065]
[1771560142260,9.37096065,82.79,82.711,15.93567086]
[1771560143558,10.8769,82.789,82.726,10.8852]
[1771560143758,9.37096065,82.78,82.727,15.92853643]
[1771560144155,9.37096065,82.78,82.73,10.8846]
[1771560144958,10.8757,82.799,82.736,15.90026355]
[1771560145560,9.37096065,82.8,82.738,15.90028299]
[1771560145759,9.37096065,82.81,82.741,15.90028299]
[1771560146659,10.8744,82.809,82.749,15.91648347]
[1771560147463,9.37096065,82.81,82.757,10.881]
[1771560147662,9.37096065,82.81,82.758,15.91650581]
[1771560148563,10.8713,82.833,82.76,15.91583548]
[1771560148964,9.08865464,82.871,82.76,15.91583548]
[1771560149154,10.8699,82.843,82.78,10.878]
[1771560150656,10.8699,82.843,82.782,10.8778]
[1771560152362,10.8686,82.853,82.789,15.92591302]
[1771560152563,9.08865464,82.852,82.789,15.92591302]
[1771560152763,9.08865464,82.865,82.789,15.92591302]
[1771560152962,9.08865464,82.864,82.789,15.92591302]
[1771560153265,9.08865464,82.863,82.789,15.92591302]
[1771560153560,9.08865464,82.862,82.789,15.92591302]
[1771560153765,9.08865464,82.861,82.789,15.92591302]
[1771560154061,9.08865464,82.849,82.789,15.92591302]
[1771560154360,9.08865464,82.848,82.789,15.92591302]
[1771560154564,9.08865464,82.847,82.789,15.92591302]
[1771560154866,10.8705,82.838,82.789,15.92591302]
[1771560158663,10.8694,82.847,82.791,15.91360212]
[1771560159664,10.8694,82.847,82.794,15.91361484]
[1771560160164,10.8704,82.839,82.794,15.91361484]
[1771560161463,10.8715,82.831,82.778,15.92259032]
[1771560163671,10.8715,82.831,82.779,10.8782]
[1771560163971,10.8715,82.831,82.78,15.9258882]
[1771560164970,10.8715,82.831,82.782,15.96673308]
[1771560166771,9.18044887,82.848,82.786,15.96760798]
[1771560166972,9.18044887,82.861,82.786,15.96760798]
[1771560167274,9.18044887,82.86,82.786,15.96760798]
[1771560167475,9.18044887,82.859,82.786,15.96760798]
[1771560167676,9.18044887,82.875,82.786,15.96760798]
[1771560167867,9.18044887,82.874,82.786,15.96760798]
[1771560168068,9.18044887,82.873,82.786,15.96760798]
[1771560168271,9.18044887,82.872,82.786,15.96760798]
[1771560168470,9.18044887,82.871,82.786,15.96760798]
[1771560168674,10.8693,82.848,82.793,15.98596155]
[1771560170477,10.8693,82.848,82.802,15.99947436]
[1771560170677,10.8682,82.856,82.802,15.99947436]
[1771560171582,9.18044887,82.881,82.811,15.99949074]
[1771560171778,9.37096065,82.89,82.811,15.99949074]
[1771560172284,9.37096065,82.89,82.842,10.8699]
[1771560172686,9.37096065,82.89,82.81,9.37096065]
[1771560172687,9.37096065,82.89,82.843,16.00984093]
[1771560172886,10.8619,82.904,82.845,16.00984093]
[1771560173683,10.8619,82.904,82.851,10.8688]
[1771560174289,10.8619,82.904,82.851,26.88203049]
[1771560174491,10.8619,82.904,82.854,16.01323049]
[1771560177486,9.37096065,82.91,82.858,10.8678]
[1771560177681,9.37096065,82.91,82.859,16.02567475]
[1771560177984,9.35624131,82.93,82.859,16.02567475]
[1771560178683,9.35624131,82.93,82.871,16.03323591]
[1771560178684,10.8591,82.925,82.871,16.03323591]
[1771560179291,10.8591,82.925,82.873,16.03324674]
[1771560179991,9.35624131,82.93,82.876,10.8655]
[1771560180293,9.35624131,82.93,82.877,16.03324674]
[1771560180991,9.35624131,82.93,82.878,16.03350217]
[1771560181789,10.8589,82.927,82.878,16.03350217]
[1771560182290,9.35624131,82.93,82.878,16.03350217]
[1771560183392,10.8562,82.948,82.889,16.02088957]
[1771560184790,10.8562,82.948,82.891,16.01924151]
[1771560188291,9.35624131,82.95,82.897,16.0136496]
[1771560189396,10.856,82.949,82.897,16.0136496]
[1771560189694,9.35624131,82.95,82.887,16.01366684]
[1771560190799,10.8573,82.94,82.887,16.01366684]
[1771560192392,10.8573,82.94,82.889,16.01125605]
[1771560195004,10.8573,82.94,82.891,16.01007738]
[1771560195906,3.14222725,82.93,82.891,16.01007738]
[1771560198504,3.14222725,82.93,82.892,10.8633]
[1771560198703,3.14222725,82.94,82.893,16.01345282]
[1771560199302,3.14222725,82.94,82.894,10.8631]
[1771560199503,3.14222725,82.94,82.895,16.01346822]
[1771560200102,13.99942725,82.94,82.895,16.01346822]
[1771560204611,13.99812725,82.95,82.897,16.02512583]
[1771560204905,13.99812725,82.95,82.901,16.02512583]
[1771560205109,13.99812725,82.95,82.907,16.02512583]
[1771560205110,3.14222725,82.95,82.907,16.02512583]
[1771560205705,13.99682725,82.96,82.911,16.02513725]
[1771560205905,13.99682725,82.96,82.85,169.0724]
[1771560205906,13.99552725,82.97,82.921,16.02513725]
[1771560209006,3.14222725,82.96,82.921,16.02513725]
[1771560210110,13.99552725,82.97,82.921,16.02513725]
[1771560211718,3.14222725,82.98,82.931,16.02199857]
[1771560213915,3.14222725,82.97,82.931,16.02199857]
[1771560214612,3.14222725,82.96,82.919,16.07111719]
[1771560217017,3.14222725,82.96,82.92,10.8597]
[1771560217212,3.14222725,82.96,82.921,16.03597586]
[1771560217718,3.14222725,82.96,82.868,36.18]
[1771560217719,3.14222725,82.97,82.923,16.03581241]
[1771560218320,3.14222725,82.98,82.932,16.05558928]
[1771560220117,3.14222725,82.97,82.932,16.05558928]
[1771560224319,3.14222725,82.96,82.932,16.05558928]
[1771560225223,10.8525,82.976,82.932,16.05558928]
[1771560225224,3.14222725,82.97,82.932,16.05558928]
[1771560229930,3.14222725,82.98,82.935,16.01058021]
[1771560230129,3.14222725,82.97,82.935,16.01058021]
[1771560234134,3.14222725,82.97,82.936,10.8575]
[1771560234339,10.8506,82.99,82.92,3.14222725]
[1771560234340,3.14222725,82.98,82.937,15.9962387]
[1771560235039,3.14222725,82.98,82.939,10.8572]
[1771560235335,3.14222725,82.98,82.94,15.99522213]
[1771560237942,3.13846942,82.98,82.94,15.99522213]
[1771560241135,11.06120188,83.007,82.949,16.00007059]
[1771560241136,10.8492,83.001,82.949,16.00007059]
[1771560241336,3.13846942,82.98,82.949,16.00007059]
[1771560244143,3.13846942,82.99,82.951,15.99859468]
[1771560244343,11.90993966,83.031,82.951,15.99859468]
[1771560244344,3.13846942,83.0,82.951,15.99859468]
[1771560245641,3.13846942,83.0,82.955,10.8551]
[1771560245842,3.13846942,83.0,82.956,16.00022219]
[1771560246443,3.13846942,82.99,82.956,16.00022219]
[1771560248646,3.13846942,82.97,82.94,16.00096737]
[1771560250647,3.13846942,82.96,82.94,16.00096737]
[1771560250948,3.13846942,82.97,82.94,16.00096737]
[1771560252647,3.13846942,82.95,82.929,15.99516049]
[1771560252852,3.13846942,82.96,82.929,15.99516049]
[1771560260151,3.13846942,82.97,82.931,16.00100422]
[1771560261856,3.13846942,82.97,82.935,16.00237058]
[1771560262555,14.96634137,83.016,82.887,36.18]
[1771560262556,3.13846942,82.98,82.941,16.01618298]
[1771560268462,3.13846942,82.97,82.941,16.01618298]
[1771560268764,3.13846942,82.98,82.941,16.01618298]
[1771560271463,13.99036942,82.98,82.941,16.01618298]
[1771560271664,3.13846942,82.97,82.921,16.01994103]
[1771560272967,10.8519,82.98,82.924,10.8591]
[1771560273162,3.13846942,82.97,82.925,16.0177458]
[1771560274666,3.13846942,82.97,82.929,10.8585]
[1771560274866,3.13846942,82.97,82.93,15.98273006]
[1771560278768,3.13846942,82.98,82.931,10.8582]
[1771560278970,3.13846942,82.98,82.932,15.98304222]
[1771560279776,10.8517,82.982,82.932,15.98304222]
[1771560279968,3.13846942,82.98,82.932,15.98304222]
[1771560280468,3.13846942,82.97,82.932,15.98304222]
[1771560285764,10.8534,82.969,82.932,15.98304222]
[1771560285965,36.18,83.012,82.833,169.1077]
[1771560285966,3.13846942,82.95,82.911,15.9897579]
[1771560286266,3.13846942,82.93,82.898,15.9897579]
[1771560289770,3.13846942,82.92,82.881,15.95284685]
[1771560293973,3.13846942,82.9,82.868,15.96504128]
[1771560298476,3.13846942,82.89,82.868,15.96504128]
[1771560299479,3.13846942,82.88,82.851,15.96220419]
[1771560299881,3.14624951,82.88,82.851,15.96220419]
[1771560300576,3.14624951,82.9,82.866,15.88429931]
[1771560300773,3.14624951,82.91,82.866,15.88429931]
[1771560301881,3.14624951,82.92,82.87,3.14624951]
[1771560302078,3.14624951,82.92,82.871,15.88430431]
[1771560303180,3.14624951,82.92,82.873,10.8659]
[1771560303379,3.14624951,82.92,82.874,15.89803695]
[1771560305285,3.14624951,82.92,82.876,10.8655]
[1771560305486,3.14624951,82.92,82.877,15.90654366]
[1771560307581,3.14624951,82.93,82.881,15.90532306]
[1771560308183,10.8589,82.927,82.881,15.90532306]
[1771560308384,3.14624951,82.92,82.881,15.90532306]
[1771560310887,3.14624951,82.91,82.861,15.90740144]
[1771560311090,3.14624951,82.9,82.861,15.90740144]
[1771560317094,3.14624951,82.9,82.855,15.8797834]
[1771560317302,3.14624951,82.88,82.831,15.87978577]
[1771560317695,14.96634137,82.945,82.79,36.18]
[1771560317696,3.14624951,82.89,82.841,15.87978577]
[1771560317897,3.14624951,82.9,82.851,15.87978577]
[1771560318097,11.06120188,82.945,82.787,221.28963346]
[1771560318098,3.14624951,82.91,82.861,15.87978577]
[1771560318404,3.14624951,82.9,82.861,15.87978577]
[1771560321299,14.00744951,82.91,82.861,15.87978577]
[1771560323400,10.8599,82.919,82.871,15.80300297]
[1771560323601,3.14624951,82.93,82.871,15.80300297]
[1771560323799,3.14624951,82.93,82.88,3.14624951]
[1771560324000,3.14624951,82.93,82.881,15.80300297]
[1771560325301,10.8587,82.928,82.881,15.80300297]
[1771560329304,21.7085,82.963,82.881,15.80300297]
[1771560329305,10.8599,82.919,82.881,15.80300297]
[1771560329504,3.14624951,82.91,82.881,15.80300297]
[1771560330907,10.8599,82.919,82.881,15.80300297]
[1771560331806,3.14624951,82.92,82.881,15.80300297]
[1771560333010,3.14624951,82.91,82.881,15.80300297]
[1771560333907,11.24846686,82.979,82.903,4.73883682]
[1771560334204,11.24846686,82.979,82.847,169.0776]
[1771560334205,9.20061841,82.978,82.931,4.73883682]
[1771560334512,3.14624951,82.97,82.931,4.73883682]
[1771560335511,3.14624951,82.98,82.931,4.73883682]
[1771560336612,10.8521,82.979,82.931,4.73883682]
[1771560343111,3.14624951,82.97,82.931,4.73883682]
[1771560350219,10.8521,82.979,82.931,4.73883682]
[1771560353117,10.8531,82.971,82.931,4.73883682]
[1771560353420,3.14624951,82.96,82.918,4.96667088]
[1771560354715,10.8549,82.958,82.918,4.96667088]
[1771560362020,3.13979357,82.94,82.899,4.97371364]
[1771560363125,3.13979357,82.95,82.901,4.9898457]
[1771560363528,10.8581,82.933,82.901,4.9898457]
[1771560364927,3.13979357,82.94,82.901,4.9898457]
[1771560365229,10.857,82.942,82.901,4.9898457]
[1771560365422,3.13979357,82.96,82.911,5.00010231]
[1771560366236,10.8541,82.963,82.921,5.00010231]
[1771560368435,3.13979357,82.96,82.921,5.00010231]
[1771560375940,10.8547,82.959,82.921,5.00010231]
[1771560379851,10.8535,82.968,82.921,5.00010231]
[1771560380744,3.13979357,82.97,82.904,5.09911856]
[1771560380944,36.2,83.032,82.837,51.91337934]
[1771560380945,3.13979357,82.94,82.887,22.32739698]
[1771560381145,3.13979357,82.92,82.879,5.09911856]
[1771560382646,3.13979357,82.92,82.88,4.97492964]
[1771560396261,3.13979357,82.92,82.881,10.8649]
[1771560398059,3.13979357,82.92,82.88,4.97492964]
[1771560400459,3.13979357,82.93,82.881,5.00392094]
[1771560401765,10.8576,82.937,82.885,5.00374244]
[1771560401966,3.13979357,82.93,82.885,5.00374244]
[1771560404066,3.13979357,82.93,82.884,10.8644]
[1771560404067,10.8576,82.937,82.891,4.99806418]
[1771560404865,10.8563,82.947,82.893,4.99837589]
[1771560405061,3.13979357,82.94,82.893,4.99837589]
[1771560405265,10.8563,82.947,82.901,4.99837589]
[1771560407569,3.13979357,82.94,82.901,4.99837589]
[1771560408473,3.13979357,82.94,82.903,5.0072515]
[1771560419978,3.14077659,82.95,82.903,5.0072515]
[1771560420680,3.14077659,82.96,82.916,4.92806041]
[1771560420877,3.14077659,82.95,82.891,4.92806041]
[1771560421180,3.14077659,82.94,82.892,4.92806041]
[1771560422681,3.14077659,82.94,82.894,4.88604]
[1771560431385,3.14077659,82.94,82.897,4.86872136]
[1771560434090,3.14077659,82.93,82.885,15.73631355]
[1771560434288,3.14077659,82.93,82.886,4.87211355]
[1771560434788,10.8586,82.929,82.886,4.87211355]
[1771560435087,3.14077659,82.92,82.886,4.87211355]
[1771560436386,58.5512681,82.974,82.87,34.04822427]
[1771560436387,3.14077659,82.94,82.891,4.89160926]
[1771560437691,3.14077659,82.94,82.893,4.83846338]
[1771560438388,9.21559079,82.939,82.893,4.83846338]
[1771560438587,3.14077659,82.94,82.893,4.83846338]
[1771560438791,3.14077659,82.94,82.896,4.85051049]
[1771560442192,10.8578,82.936,82.896,4.85051049]
[1771560442399,3.14077659,82.93,82.896,4.85051049]
[1771560443094,3.14077659,82.92,82.883,4.83404238]
[1771560444900,3.14077659,82.93,82.883,4.83404238]
[1771560445797,3.14077659,82.93,82.885,4.82963227]
[1771560446901,10.8576,82.937,82.891,4.83611653]
[1771560447102,10.8563,82.947,82.901,4.83611653]
[1771560447298,3.14077659,82.94,82.901,4.83611653]
[1771560452005,11.16844293,82.968,82.9,3.14077659]
[1771560452006,3.14077659,82.95,82.906,4.82691681]
[1771560453907,3.14077659,82.95,82.908,4.82688093]
[1771560454707,3.14077659,82.95,82.91,4.83612407]
[1771560458409,13.99667659,82.95,82.91,4.83612407]
[1771560459611,3.14077659,82.95,82.91,4.83612407]
[1771560460212,3.14077659,82.94,82.9,4.84298612]
[1771560460410,3.14077659,82.93,82.9,4.84298612]
[1771560463817,3.14077659,82.92,82.889,4.83585376]